bitfinex-derivatives/quotes_BNBF0:USTF0_20260110
["timestamp","ask_amount","ask_price","bid_price","bid_amount"]
[1768066678977,0.19119513,910.6,909.41,0.69579341]
[1768066679178,0.19119513,910.6,909.42,0.69579341]
[1768066679477,0.19119513,910.6,909.43,0.69579341]
[1768066679777,0.19119513,910.6,909.44,0.69579341]
[1768066679978,0.19119513,910.6,909.45,0.69579341]
[1768066680176,0.19119513,910.6,909.46,0.69579341]
[1768066680474,0.19119513,910.6,909.47,0.69579341]
[1768066680773,0.19119513,910.6,909.48,0.69579341]
[1768066681074,0.19119513,910.6,909.49,0.69579341]
[1768066681272,0.19119513,910.6,909.5,0.69579341]
[1768066681473,0.19119513,910.6,909.51,0.69579341]
[1768066681676,0.19119513,910.6,909.52,0.69579341]
[1768066681976,0.19119513,910.6,909.36,4.07173093]
[1768066682274,0.19119513,910.6,909.37,0.69581406]
[1768066682471,0.19119513,910.6,909.38,0.69581406]
[1768066682676,2.72679797,910.98,909.39,0.69581406]
[1768066682973,2.72679797,910.98,909.4,0.69581406]
[1768066683174,2.72679797,910.98,909.41,0.69581406]
[1768066683374,2.72679797,910.98,909.42,0.69581406]
[1768066683674,2.72679797,910.98,909.43,0.69581406]
[1768066683874,2.72679797,910.98,909.44,0.69581406]
[1768066684076,2.72679797,910.97,909.45,0.69581406]
[1768066684273,2.72679797,910.97,909.46,0.69581406]
[1768066684478,2.72679797,910.97,909.47,0.69581406]
[1768066684677,2.72679797,910.97,909.48,0.69581406]
[1768066684876,2.72679797,910.97,909.49,0.69581406]
[1768066685080,2.72679797,910.97,909.5,0.69581406]
[1768066685280,2.72679797,910.97,909.51,0.69581406]
[1768066685480,2.72679797,910.97,909.36,4.07173093]
[1768066685679,2.72679797,910.97,909.37,0.69491159]
[1768066685879,2.72679797,910.97,909.38,0.69491159]
[1768066686077,2.72679797,910.97,909.39,0.69491159]
[1768066686281,0.19121404,910.58,909.4,0.69491159]
[1768066686479,0.19121404,910.58,909.41,0.69491159]
[1768066686681,0.19121404,910.58,909.42,0.69491159]
[1768066686877,0.19121404,910.58,909.43,0.69491159]
[1768066687181,0.19121404,910.58,909.44,0.69491159]
[1768066687477,0.19121404,910.58,909.45,0.69491159]
[1768066687679,0.19121404,910.58,909.46,0.69491159]
[1768066687979,0.19121404,910.58,909.47,0.69491159]
[1768066688282,0.19121404,910.58,909.48,0.69491159]
[1768066688478,0.19121404,910.58,909.49,0.69491159]
[1768066688679,0.19121404,910.58,909.5,0.69491159]
[1768066688880,0.19121404,910.58,909.51,0.69491159]
[1768066689084,0.19121404,910.58,909.52,0.69491159]
[1768066689282,0.19121404,910.58,909.36,4.07173093]
[1768066689482,0.19121404,910.58,909.37,0.69501534]
[1768066689686,0.19121404,910.58,909.38,0.69501534]
[1768066689881,0.19121404,910.58,909.39,0.69501534]
[1768066690084,0.19121404,910.58,909.4,0.69501534]
[1768066690284,0.19121404,910.58,909.41,0.69501534]
[1768066690485,0.19121404,910.58,909.42,0.69501534]
[1768066690684,0.19121404,910.58,909.43,0.69501534]
[1768066690885,0.19121404,910.58,909.44,0.69501534]
[1768066691087,0.19121404,910.58,909.45,0.69501534]
[1768066691286,0.19121404,910.58,909.46,0.69501534]
[1768066691484,0.19121404,910.58,909.47,0.69501534]
[1768066691688,0.19121404,910.58,909.48,0.69501534]
[1768066691988,0.19121404,910.58,909.49,0.69501534]
[1768066692288,0.19121404,910.58,909.5,0.69501534]
[1768066692487,0.19121404,910.58,909.51,0.69501534]
[1768066692683,0.19121404,910.58,909.52,0.69501534]
[1768066692888,0.19121404,910.58,909.36,4.07173093]
[1768066693188,0.19121404,910.58,909.37,0.69501534]
[1768066693488,0.19121404,910.58,909.38,0.69501534]
[1768066693688,0.19121404,910.58,909.36,4.07173093]
[1768066693886,0.19121404,910.58,909.37,0.69501534]
[1768066694086,0.19121404,910.58,909.38,0.69501534]
[1768066694288,0.19121404,910.58,909.36,4.07173093]
[1768066694488,0.19121404,910.58,909.37,0.69533185]
[1768066694685,0.19121404,910.58,909.38,0.69533185]
[1768066694989,0.19121404,910.58,909.36,4.07173093]
[1768066695189,0.19121404,910.58,909.37,0.69533221]
[1768066695386,0.19121404,910.58,909.38,0.69533221]
[1768066695590,0.19121404,910.58,909.39,0.69533221]
[1768066695790,0.19121404,910.58,909.36,4.07173093]
[1768066695989,0.19121404,910.58,909.37,0.69548559]
[1768066696188,0.19121404,910.58,909.38,0.69548559]
[1768066696390,0.19121404,910.58,909.39,0.69548559]
[1768066696588,0.19121404,910.58,909.36,4.07173093]
[1768066696795,0.19121404,910.58,909.37,0.69548563]
[1768066697092,0.19121404,910.58,909.38,0.69548563]
[1768066697292,0.19121404,910.58,909.39,0.69548563]
[1768066697588,0.19121404,910.58,909.36,4.07173093]
[1768066697892,0.19121404,910.58,909.37,0.69548574]
[1768066698192,0.19121404,910.58,909.38,0.69548574]
[1768066698389,0.19121404,910.58,909.39,0.69548574]
[1768066698593,0.19121404,910.58,909.36,4.07173093]
[1768066698892,0.19121404,910.58,909.37,0.695486]
[1768066699192,0.19121404,910.58,909.38,0.695486]
[1768066699392,0.19121404,910.58,909.36,4.07173093]
[1768066699693,0.19121404,910.58,909.37,0.69548597]
[1768066699892,0.19121404,910.58,909.38,0.69548597]
[1768066700090,0.19121404,910.58,909.36,4.07173093]
[1768066700393,0.19121404,910.58,909.37,0.69548602]
[1768066700592,0.19121404,910.58,909.38,0.69548602]
[1768066700788,0.19121404,910.58,909.36,4.07173093]
[1768066700993,0.19121404,910.58,909.37,0.69548604]
[1768066701292,0.19121404,910.58,909.38,0.69548604]
[1768066701489,0.19121404,910.58,909.36,4.07173093]
[1768066701793,0.19121404,910.58,909.37,0.69548604]
[1768066702093,0.19121404,910.58,909.38,0.69548604]
[1768066702388,0.19121404,910.58,909.39,0.69548604]
[1768066702588,0.19121404,910.58,909.36,4.07173093]
[1768066702792,0.19121404,910.58,909.37,0.6955867]
[1768066702993,0.19121404,910.58,909.38,0.6955867]
[1768066703194,0.19121404,910.58,909.39,0.6955867]
[1768066703392,0.19121404,910.58,909.36,4.07173093]
[1768066703589,0.19121404,910.58,909.37,0.6955867]
[1768066703896,0.19121404,910.58,909.38,0.6955867]
[1768066704090,0.19121404,910.58,909.39,0.6955867]
[1768066704291,0.19121404,910.58,909.4,0.6955867]
[1768066704492,0.19121404,910.58,909.36,4.07173093]
[1768066704493,0.19121404,910.58,909.41,0.6955867]
[1768066704692,0.19121404,910.58,909.42,0.6955867]
[1768066704995,0.19121404,910.58,909.43,0.6955867]
[1768066705195,0.19121404,910.58,909.44,0.6955867]
[1768066705396,0.19121404,910.58,909.45,0.6955867]
[1768066705593,0.19121404,910.58,909.46,0.6955867]
[1768066705797,0.19121404,910.58,909.47,0.6955867]
[1768066705994,0.19121404,910.58,909.48,0.6955867]
[1768066706294,0.19121404,910.58,909.49,0.6955867]
[1768066706493,0.19121404,910.58,909.5,0.6955867]
[1768066706698,0.19121404,910.58,909.51,0.6955867]
[1768066706999,0.19121404,910.58,909.36,4.07173093]
[1768066707197,0.19121404,910.58,909.37,0.69558676]
[1768066707397,0.19121404,910.58,909.38,0.69558676]
[1768066707693,0.19121404,910.58,909.39,0.69558676]
[1768066707897,0.19121404,910.58,909.4,0.69558676]
[1768066708095,0.19121404,910.58,909.41,0.69558676]
[1768066708294,0.19121404,910.58,909.42,0.69558676]
[1768066708497,0.19121404,910.58,909.43,0.69558676]
[1768066708794,0.19121404,910.58,909.44,0.69558676]
[1768066708994,0.19121404,910.58,909.45,0.69558676]
[1768066709293,0.19121404,910.58,909.46,0.69558676]
[1768066709494,0.19121404,910.58,909.47,0.69558676]
[1768066709698,0.19121404,910.58,909.36,4.07173093]
[1768066709699,0.19121404,910.58,909.48,0.69558676]
[1768066709896,0.19121404,910.58,909.49,0.69558676]
[1768066710101,0.19121404,910.58,909.5,0.69558676]
[1768066710395,0.19121404,910.58,909.51,0.69558676]
[1768066710599,0.19121404,910.58,909.36,4.07173093]
[1768066710796,0.19121404,910.58,909.37,0.69558681]
[1768066711000,0.19121404,910.58,909.38,0.69558681]
[1768066711196,0.19121404,910.58,909.39,0.69558681]
[1768066711399,0.19121404,910.58,909.4,0.69558681]
[1768066711599,0.19121404,910.58,909.41,0.69558681]
[1768066711800,0.19121404,910.58,909.42,0.69558681]
[1768066712098,0.19121404,910.58,909.43,0.69558681]
[1768066712297,0.19121404,910.58,909.44,0.69558681]
[1768066712599,0.19121404,910.58,909.45,0.69558681]
[1768066712796,0.19121404,910.58,909.46,0.69558681]
[1768066712997,0.19121404,910.58,909.47,0.69558681]
[1768066713198,0.19121404,910.58,909.48,0.69558681]
[1768066713399,0.19121404,910.58,909.49,0.69558681]
[1768066713599,0.19121404,910.58,909.5,0.69558681]
[1768066713799,0.19121404,910.58,909.51,0.69558681]
[1768066714098,0.19121404,910.58,909.36,4.07173093]
[1768066714297,0.19121404,910.58,909.37,0.69558672]
[1768066714597,0.19121404,910.58,909.38,0.69558672]
[1768066714797,0.19121404,910.58,909.39,0.69558672]
[1768066714996,0.19121404,910.58,909.4,0.69558672]
[1768066715196,0.19121404,910.58,909.41,0.69558672]
[1768066715395,0.19121404,910.58,909.42,0.69558672]
[1768066715598,0.19121404,910.58,909.43,0.69558672]
[1768066715797,0.19121404,910.58,909.44,0.69558672]
[1768066716101,0.19121404,910.58,909.45,0.69558672]
[1768066716401,0.19121404,910.58,909.46,0.69558672]
[1768066716599,0.19121404,910.58,909.47,0.69558672]
[1768066716805,0.19121404,910.58,909.48,0.69558672]
[1768066716998,0.19121404,910.58,909.49,0.69558672]
[1768066717198,0.19121404,910.58,909.5,0.69558672]
[1768066717398,0.19121404,910.58,909.51,0.69558672]
[1768066717599,0.19121404,910.58,909.4,1.96]
[1768066717802,0.19121404,910.58,909.41,0.69577603]
[1768066718000,0.19121404,910.58,909.42,0.69577603]
[1768066718199,0.19121404,910.58,909.43,0.69577603]
[1768066718405,0.19121404,910.58,909.44,0.69577603]
[1768066718602,0.19121404,910.58,909.45,0.69577603]
[1768066718803,0.19121404,910.58,909.46,0.69577603]
[1768066719004,0.19121404,910.58,909.47,0.69577603]
[1768066719206,0.19121404,910.58,909.48,0.69577603]
[1768066719406,0.19121404,910.58,909.49,0.69577603]
[1768066719606,0.19121404,910.58,909.5,0.69577603]
[1768066719905,0.19121404,910.58,909.51,0.69577603]
[1768066720106,0.19121404,910.58,909.4,1.96]
[1768066720307,0.19121404,910.58,909.41,0.69577613]
[1768066720505,0.19121404,910.58,909.42,0.69577613]
[1768066720708,0.19121404,910.58,909.43,0.69577613]
[1768066720908,0.19121404,910.58,909.44,0.69577613]
[1768066721108,0.19121404,910.58,909.45,0.69577613]
[1768066721305,0.19121404,910.58,909.46,0.69577613]
[1768066721507,0.19121404,910.58,909.47,0.69577613]
[1768066721704,0.19121404,910.58,909.48,0.69577613]
[1768066722003,0.19121404,910.58,909.49,0.69577613]
[1768066722206,0.19121404,910.58,909.5,0.69577613]
[1768066722405,0.19121404,910.58,909.51,0.69577613]
[1768066722609,0.19121404,910.58,909.4,1.96]
[1768066722809,0.19121404,910.58,909.41,0.69577611]
[1768066723005,0.19121404,910.58,909.42,0.69577611]
[1768066723208,0.19121404,910.58,909.43,0.69577611]
[1768066723506,0.19121404,910.58,909.44,0.69577611]
[1768066723707,0.19121404,910.58,909.45,0.69577611]
[1768066723910,0.19121404,910.58,909.46,0.69577611]
[1768066724108,0.19121404,910.58,909.47,0.69577611]
[1768066724312,0.19121404,910.58,909.48,0.69577611]
[1768066724510,0.19121404,910.58,909.49,0.69577611]
[1768066724713,0.19121404,910.58,909.5,0.69577611]
[1768066724909,0.19121404,910.58,909.51,0.69577611]
[1768066725114,0.19121404,910.58,909.4,1.96]
[1768066725409,0.19121404,910.58,909.41,0.69577611]
[1768066725612,0.19121404,910.58,909.42,0.69577611]
[1768066725912,0.19121404,910.58,909.43,0.69577611]
[1768066726110,0.19121404,910.58,909.44,0.69577611]
[1768066726313,0.19121404,910.58,909.45,0.69577611]
[1768066726510,0.19121404,910.58,909.46,0.69577611]
[1768066726709,0.19121404,910.58,909.47,0.69577611]
[1768066727008,0.19121404,910.58,909.48,0.69577611]
[1768066727207,0.19121404,910.58,909.49,0.69577611]
[1768066727411,0.19121404,910.58,909.5,0.69577611]
[1768066727610,0.19121404,910.58,909.51,0.69577611]
[1768066727811,0.19121404,910.58,909.4,1.96]
[1768066728009,0.19121404,910.58,909.41,0.69577624]
[1768066728212,0.19121404,910.58,909.42,0.69577624]
[1768066728409,0.19121404,910.58,909.43,0.69577624]
[1768066728613,0.19121404,910.58,909.44,0.69577624]
[1768066728913,0.19121404,910.58,909.45,0.69577624]
[1768066729109,0.19121404,910.58,909.46,0.69577624]
[1768066729310,0.19121404,910.58,909.47,0.69577624]
[1768066729613,0.19121404,910.58,909.48,0.69577624]
[1768066729812,0.19121404,910.58,909.49,0.69577624]
[1768066730011,0.19121404,910.58,909.5,0.69577624]
[1768066730212,0.19121404,910.58,909.51,0.69577624]
[1768066730412,0.19121404,910.58,909.4,1.96]
[1768066730613,0.19121404,910.58,909.41,0.69535063]
[1768066730812,0.19121404,910.58,909.42,0.69535063]
[1768066731111,0.19121404,910.58,909.43,0.69535063]
[1768066731314,0.19121404,910.58,909.44,0.69535063]
[1768066731515,0.19121404,910.58,909.4,1.96]
[1768066731516,0.19121404,910.58,909.45,0.69535063]
[1768066731713,0.19121404,910.58,909.46,0.69535063]
[1768066731918,0.19121404,910.58,909.47,0.69535063]
[1768066732117,0.19121404,910.58,909.48,0.69535063]
[1768066732315,0.19121404,910.58,909.49,0.69535063]
[1768066732617,0.19121404,910.58,909.5,0.69535063]
[1768066732815,0.19121404,910.58,909.51,0.69535063]
[1768066733015,0.19121404,910.58,909.4,1.96]
[1768066733317,0.19121404,910.58,909.41,0.69532594]
[1768066733516,0.19121404,910.58,909.42,0.69532594]
[1768066733716,0.19121404,910.58,909.43,0.69532594]
[1768066733917,0.19121404,910.58,909.44,0.69532594]
[1768066734115,0.19121404,910.58,909.45,0.69532594]
[1768066734320,0.19121404,910.58,909.46,0.69532594]
[1768066734518,0.19121404,910.58,909.47,0.69532594]
[1768066734722,0.19121404,910.58,909.48,0.69532594]
[1768066734919,0.19121404,910.58,909.49,0.69532594]
[1768066735123,0.19121404,910.58,909.5,0.69532594]
[1768066735320,0.19121404,910.58,909.51,0.69532594]
[1768066735524,0.19121404,910.58,909.4,1.96]
[1768066735725,0.19121404,910.58,909.41,0.69507677]
[1768066735922,0.19121404,910.58,909.42,0.69507677]
[1768066736224,0.19121404,910.58,909.43,0.69507677]
[1768066736425,0.19121404,910.58,909.44,0.69507677]
[1768066736625,0.19121404,910.58,909.45,0.69507677]
[1768066736826,0.19121404,910.58,909.46,0.69507677]
[1768066737021,0.19121404,910.58,909.47,0.69507677]
[1768066737226,0.19121404,910.58,909.48,0.69507677]
[1768066737433,0.19121404,910.58,909.49,0.69507677]
[1768066737627,0.19121404,910.58,909.5,0.69507677]
[1768066737926,0.19121404,910.58,909.51,0.69507677]
[1768066738127,0.19121404,910.58,909.4,1.96]
[1768066738423,0.19121404,910.58,909.41,0.69531571]
[1768066738626,0.19121404,910.58,909.42,0.69531571]
[1768066738826,0.19121404,910.58,909.43,0.69531571]
[1768066739026,0.19121404,910.58,909.44,0.69531571]
[1768066739226,0.19121404,910.58,909.45,0.69531571]
[1768066739523,0.19121404,910.58,909.46,0.69531571]
[1768066739727,0.19121404,910.58,909.47,0.69531571]
[1768066740029,0.19121404,910.58,909.48,0.69531571]
[1768066740326,0.19121404,910.58,909.49,0.69531571]
[1768066740526,0.19121404,910.58,909.5,0.69531571]
[1768066740728,0.19121404,910.58,909.51,0.69531571]
[1768066740926,0.19121404,910.58,909.4,1.96]
[1768066741127,0.19121404,910.58,909.41,0.69531576]
[1768066741328,0.19121404,910.58,909.42,0.69531576]
[1768066741527,0.19121404,910.58,909.43,0.69531576]
[1768066741727,0.19121404,910.58,909.44,0.69531576]
[1768066741928,0.19121404,910.58,909.45,0.69531576]
[1768066742127,0.19121404,910.58,909.46,0.69531576]
[1768066742327,0.19121404,910.58,909.47,0.69531576]
[1768066742528,0.19121404,910.58,909.48,0.69531576]
[1768066742729,0.19121404,910.58,909.49,0.69531576]
[1768066743032,0.19121404,910.58,909.4,1.96]
[1768066759343,0.19121404,910.58,908.82,0.82379031]
[1768066759542,0.19121404,910.58,908.83,0.69297738]
[1768066759746,0.19121404,910.58,908.84,0.69297738]
[1768066759946,0.19121404,910.58,908.85,0.69297738]
[1768066760147,0.19121404,910.58,908.86,0.69297738]
[1768066760348,0.19121404,910.58,908.87,0.69297738]
[1768066760547,0.19121404,910.58,908.88,0.69297738]
[1768066760746,0.19121404,910.58,908.89,0.69297738]
[1768066760947,0.19121404,910.58,908.92,0.82379031]
[1768066761150,0.19121404,910.58,909.0,0.82379031]
[1768066761451,0.19121404,910.58,909.01,0.69297738]
[1768066761647,0.19121404,910.58,909.02,0.69297738]
[1768066761851,0.19121404,910.58,909.03,0.69297738]
[1768066762150,0.19121404,910.58,909.04,0.69297738]
[1768066762346,0.19121404,910.58,909.05,0.69297738]
[1768066762551,0.19121404,910.58,909.06,0.69297738]
[1768066762751,0.19121404,910.58,909.07,0.69297738]
[1768066762952,0.19121404,910.58,909.08,0.69297738]
[1768066763248,0.19121404,910.58,909.09,0.69297738]
[1768066763452,0.19121404,910.58,909.1,0.69297738]
[1768066763748,0.19121404,910.58,909.11,0.69297738]
[1768066763951,0.19121404,910.58,909.12,0.69297738]
[1768066764148,0.19121404,910.58,909.13,0.69297738]
[1768066764348,0.19121404,910.58,909.14,0.69297738]
[1768066764546,0.19121404,910.58,909.15,0.69297738]
[1768066764748,0.19121404,910.58,909.16,0.69297738]
[1768066765048,0.19121404,910.58,909.17,0.69297738]
[1768066765246,0.19121404,910.58,909.18,0.69297738]
[1768066765449,0.19121404,910.58,909.19,0.69297738]
[1768066765648,0.19121404,910.58,909.2,0.69297738]
[1768066765847,0.19121404,910.58,909.21,0.69297738]
[1768066766046,0.19121404,910.58,909.22,0.69297738]
[1768066766248,0.19121404,910.58,909.23,0.69297738]
[1768066766451,0.19121404,910.58,909.24,0.69297738]
[1768066766748,0.19121404,910.58,909.25,0.69297738]
[1768066766948,0.19121404,910.58,909.26,0.69297738]
[1768066767147,0.19121404,910.58,909.27,0.69297738]
[1768066767448,0.19121404,910.58,909.28,0.69297738]
[1768066767650,0.19121404,910.58,909.29,0.69297738]
[1768066767850,0.19121404,910.58,909.3,0.69297738]
[1768066768047,0.19121404,910.58,909.31,0.69297738]
[1768066768349,0.19121404,910.58,909.32,0.69297738]
[1768066768550,0.19121404,910.58,909.33,0.69297738]
[1768066768746,0.19121404,910.58,909.09,1.794]
[1768066769051,0.19121404,910.58,909.1,0.69258847]
[1768066769252,0.19121404,910.58,909.11,0.69258847]
[1768066769452,0.19121404,910.58,909.12,0.69258847]
[1768066769651,0.19121404,910.58,909.13,0.69258847]
[1768066769854,0.19121404,910.58,909.14,0.69258847]
[1768066770048,0.19121404,910.58,909.15,0.69258847]
[1768066770247,0.19121404,910.58,909.16,0.69258847]
[1768066770449,0.19121404,910.58,909.17,0.69258847]
[1768066770751,0.19121404,910.58,909.18,0.69258847]
[1768066770951,0.19121404,910.58,909.19,0.69258847]
[1768066771151,0.19121404,910.58,909.2,0.69258847]
[1768066771351,0.19121404,910.58,909.21,0.69258847]
[1768066771550,0.19121404,910.58,909.22,0.69258847]
[1768066771750,0.19121404,910.58,909.23,0.69258847]
[1768066772049,0.19121404,910.58,909.24,0.69258847]
[1768066772246,0.19121404,910.58,909.09,1.794]
[1768066772247,0.19121404,910.58,909.25,0.69258847]
[1768066772451,0.19121404,910.58,909.26,0.69258847]
[1768066772652,0.19121404,910.58,909.27,0.69258847]
[1768066772948,0.19121404,910.58,909.28,0.69258847]
[1768066773148,0.19121404,910.58,909.29,0.69258847]
[1768066773349,0.19121404,910.58,909.3,0.69258847]
[1768066773649,0.19121404,910.58,909.31,0.69258847]
[1768066773847,0.19121404,910.58,909.32,0.69258847]
[1768066774152,0.19121404,910.58,909.33,0.69258847]
[1768066774348,0.19121404,910.58,909.09,1.794]
[1768066774349,0.19121404,910.58,909.34,0.69258847]
[1768066774553,0.19121404,910.58,909.35,0.69258847]
[1768066774750,0.19121404,910.58,909.36,0.69258847]
[1768066774952,0.19121404,910.58,909.09,1.794]
[1768066775148,0.19121404,910.58,909.1,0.69144402]
[1768066775353,0.19121404,910.58,909.11,0.69144402]
[1768066775654,0.19121404,910.58,909.12,0.69144402]
[1768066775950,0.19121404,910.58,909.13,0.69144402]
[1768066776148,0.19121404,910.58,909.14,0.69144402]
[1768066776353,0.19121404,910.58,909.15,0.69144402]
[1768066776554,0.19121404,910.58,909.16,0.69144402]
[1768066776850,0.19121404,910.58,909.17,0.69144402]
[1768066777055,0.19121404,910.58,909.18,0.69144402]
[1768066777255,0.19121404,910.58,909.19,0.69144402]
[1768066777452,0.19121404,910.58,909.2,0.69144402]
[1768066777654,0.19121404,910.58,909.21,0.69144402]
[1768066777850,0.19121404,910.58,909.22,0.69144402]
[1768066778054,0.19121404,910.58,909.23,0.69144402]
[1768066778256,0.19121404,910.58,909.24,0.69144402]
[1768066778457,0.19121404,910.58,909.25,0.69144402]
[1768066778656,0.19121404,910.58,909.26,0.69144402]
[1768066778854,0.19121404,910.58,909.27,0.69144402]
[1768066779052,0.19121404,910.58,909.28,0.69144402]
[1768066779258,0.19121404,910.58,909.29,0.69144402]
[1768066779455,0.19121404,910.58,909.3,0.69144402]
[1768066779655,0.19121404,910.58,909.31,0.69144402]
[1768066779852,0.19121404,910.58,909.32,0.69144402]
[1768066780052,0.19121404,910.58,909.33,0.69144402]
[1768066780256,0.19121404,910.58,909.34,0.69144402]
[1768066780456,0.19121404,910.58,909.35,0.69144402]
[1768066780658,0.19121404,910.58,909.36,0.69144402]
[1768066780857,0.19121404,910.58,909.09,1.794]
[1768066781059,0.19121404,910.58,909.1,0.69142989]
[1768066781258,0.19121404,910.58,909.11,0.69142989]
[1768066781555,0.19121404,910.58,909.12,0.69142989]
[1768066781853,0.19121404,910.58,909.13,0.69142989]
[1768066782058,0.19121404,910.58,909.14,0.69142989]
[1768066782255,0.19121404,910.58,909.15,0.69142989]
[1768066782459,0.19121404,910.58,909.16,0.69142989]
[1768066782759,0.19121404,910.58,909.17,0.69142989]
[1768066783059,0.19121404,910.58,909.18,0.69142989]
[1768066783259,0.19121404,910.58,909.19,0.69142989]
[1768066783459,0.19121404,910.58,909.2,0.69142989]
[1768066783660,0.19121404,910.58,909.21,0.69142989]
[1768066783958,0.19121404,910.58,909.22,0.69142989]
[1768066784162,0.19121404,910.58,909.23,0.69142989]
[1768066784459,0.19121404,910.58,909.24,0.69142989]
[1768066784655,0.19121404,910.58,909.25,0.69142989]
[1768066784959,0.19121404,910.58,909.26,0.69142989]
[1768066785259,0.19121404,910.58,909.27,0.69142989]
[1768066785457,0.19121404,910.58,909.09,1.794]
[1768066785657,0.19121404,910.58,909.1,0.69142922]
[1768066785856,0.19121404,910.58,909.11,0.69142922]
[1768066786056,0.19121404,910.58,909.09,1.794]
[1768066786057,0.19121404,910.58,909.12,0.69142922]
[1768066786260,0.19121404,910.58,909.13,0.69142922]
[1768066786460,0.19121404,910.58,909.14,0.69142922]
[1768066786660,0.19121404,910.58,909.15,0.69142922]
[1768066786960,0.19121404,910.58,909.16,0.69142922]
[1768066787161,0.19121404,910.58,909.17,0.69142922]
[1768066787357,0.19121404,910.58,909.18,0.69142922]
[1768066787562,0.19121404,910.58,909.19,0.69142922]
[1768066787762,0.19121404,910.58,909.2,0.69142922]
[1768066788063,0.19121404,910.58,909.21,0.69142922]
[1768066788359,0.19121404,910.58,909.22,0.69142922]
[1768066788557,0.19121404,910.58,909.23,0.69142922]
[1768066788759,0.19121404,910.58,909.24,0.69142922]
[1768066788958,0.19121404,910.58,909.25,0.69142922]
[1768066789157,0.19121404,910.58,909.26,0.69142922]
[1768066789357,0.19121404,910.58,909.27,0.69142922]
[1768066789558,0.19121404,910.58,909.09,1.794]
[1768066789757,0.19121404,910.58,909.1,0.69140283]
[1768066789956,0.19121404,910.58,909.11,0.69140283]
[1768066790161,0.19121404,910.58,909.12,0.69140283]
[1768066790357,0.19121404,910.58,909.13,0.69140283]
[1768066790561,0.19121404,910.58,909.14,0.69140283]
[1768066790761,0.19121404,910.58,909.15,0.69140283]
[1768066791056,0.19121404,910.58,909.16,0.69140283]
[1768066791259,0.19121404,910.58,909.17,0.69140283]
[1768066791461,0.19121404,910.58,909.09,1.794]
[1768066791462,0.19121404,910.58,909.18,0.69140283]
[1768066791660,0.19121404,910.58,909.19,0.69140283]
[1768066791962,0.19121404,910.58,909.2,0.69140283]
[1768066792159,0.19121404,910.58,909.21,0.69140283]
[1768066792363,0.19121404,910.58,909.22,0.69140283]
[1768066792561,0.19121404,910.58,909.23,0.69140283]
[1768066792860,0.19121404,910.58,909.24,0.69140283]
[1768066793065,0.19121404,910.58,909.25,0.69140283]
[1768066793367,0.19121404,910.58,909.26,0.69140283]
[1768066793562,0.19121404,910.58,909.27,0.69140283]
[1768066793766,0.19121404,910.58,909.28,0.69140283]
[1768066794068,0.19121404,910.58,909.29,0.69140283]
[1768066794266,0.19121404,910.58,909.3,0.69140283]
[1768066794463,0.19121404,910.58,909.31,0.69140283]
[1768066794666,0.19121404,910.58,909.32,0.69140283]
[1768066794866,0.19121404,910.58,909.33,0.69140283]
[1768066795166,0.19121404,910.58,909.34,0.69140283]
[1768066795368,0.19121404,910.58,909.35,0.69140283]
[1768066795567,0.19121404,910.58,909.36,0.69140283]
[1768066795764,0.19121404,910.58,909.37,0.69140283]
[1768066795964,0.19121404,910.58,909.38,0.69140283]
[1768066796164,0.19121404,910.58,909.39,0.69140283]
[1768066796364,0.19121404,910.58,909.4,0.69140283]
[1768066796566,0.19121404,910.58,909.41,0.69140283]
[1768066796766,0.19121404,910.58,909.42,0.69140283]
[1768066796967,0.19121404,910.58,909.43,0.69140283]
[1768066797267,0.19121404,910.58,909.44,0.69172206]
[1768066797464,0.19121404,910.58,909.3,2.101]
[1768066797663,0.19121404,910.58,909.31,0.69172206]
[1768066797864,0.19121404,910.58,909.32,0.69172206]
[1768066798169,0.19121404,910.58,909.33,0.69172206]
[1768066798368,0.19121404,910.58,909.3,2.101]
[1768066798369,0.19121404,910.58,909.34,0.69172206]
[1768066798568,0.19121404,910.58,909.35,0.69172206]
[1768066798766,0.19121404,910.58,909.36,0.69172206]
[1768066798970,0.19121404,910.58,909.37,0.69172206]
[1768066799270,0.19121404,910.58,909.38,0.69172206]
[1768066799467,0.19121404,910.58,909.39,0.69172206]
[1768066799670,0.19121404,910.58,909.4,0.69172206]
[1768066799870,0.19121404,910.58,909.41,0.69172206]
[1768066800071,0.19121404,910.58,909.42,0.69172206]
[1768066800268,0.19121404,910.58,909.43,0.69172206]
[1768066800467,0.19121404,910.58,909.44,0.69172206]
[1768066800769,0.19121404,910.58,909.45,0.69172206]
[1768066800969,0.19121404,910.58,909.46,0.69172206]
[1768066801170,0.19121404,910.58,909.3,2.101]
[1768066801370,0.19121404,910.58,909.31,0.69219205]
[1768066801571,0.19121404,910.58,909.32,0.69219205]
[1768066801766,0.19121404,910.58,909.33,0.69219205]
[1768066801968,0.19121404,910.58,909.34,0.69219205]
[1768066802168,0.19121404,910.58,909.35,0.69219205]
[1768066802367,0.19121404,910.58,909.36,0.69219205]
[1768066802569,0.19121404,910.58,909.37,0.69219205]
[1768066802770,0.19121404,910.58,909.38,0.69219205]
[1768066802969,0.19121404,910.58,909.39,0.69219205]
[1768066803169,0.19121404,910.58,909.4,0.69219205]
[1768066803472,0.19121404,910.58,909.41,0.69219205]